fUSD/lending_fUSD_20240907
["ID","MTS","AMOUNT","RATE_DAILY","PERIOD"]
[337496529,1725709841439,-1000.0,0.00014999,2]
[337496530,1725709841449,-1000.0,0.00014999,2]
[337496531,1725709841460,-1000.0,0.00014999,2]
[337496532,1725709841470,-1000.0,0.00014999,2]
[337496533,1725709841479,-1000.0,0.00014999,2]
[337496534,1725709841489,-1000.0,0.00014999,2]
[337496535,1725709841498,-1000.0,0.00014999,2]
[337496536,1725709841507,-1000.0,0.00014999,2]
[337496537,1725709841516,-1000.0,0.00014999,2]
[337496538,1725709841526,-1109.8698155,0.00014999,2]
[337496539,1725709841535,-1000.0,0.00014999,2]
[337496540,1725709841544,-635663.36504225,0.00015,2]
[337496541,1725709841553,-2716769.57862246,0.00015,2]
[337496542,1725709841637,-9.13549909,0.00015,2]
[337496543,1725709841648,-255.48991921,0.00015,2]
[337496544,1725709841658,-22512.11144,0.00015,2]
[337496545,1725709841673,-771.144,0.00015,2]
[337496546,1725709841684,-178274.24298516,0.00015,2]
[337496547,1725709841699,-1248.30833702,0.00013,2]
[337496548,1725709841710,-5119.59166298,0.00015,2]
[337496549,1725709841723,-6771.1247616,0.00015,2]
[337496550,1725709841734,-30261.79095985,0.00015,2]
[337496557,1725709846294,-325.0,0.00013236,2]
[337496634,1725709973118,-300.0,0.00012899,2]
[337496635,1725709977300,435.36023836,0.0001289,2]
[337496636,1725709981386,300.0,0.00012899,2]
[337496637,1725710041880,300.0,0.00012899,2]
[337496638,1725710086990,191.31,0.00012129,2]
[337496639,1725710101350,300.0,0.00012899,2]
[337496640,1725710381157,-5000.0,0.000129,2]
[337496641,1725710381325,209.49,0.00011386,2]
[337496708,1725710892491,199.01,0.00011295,2]
[337496720,1725711032308,-300.0,0.00012899,2]
[337496722,1725711032318,-446.56164777,0.000129,2]
[337496725,1725711032329,-548.61637521,0.000129,2]
[337496727,1725711032340,-984.09450233,0.000129,2]
[337496730,1725711032366,-2599.99999999,0.000129,2]
[337496731,1725711032377,-3408.55660197,0.000129,2]
[337496732,1725711032388,-14077.53677643,0.000129,2]
[337496733,1725711032400,-16856.1090963,0.000129,2]
[337496734,1725711032410,-14147.5748,0.000129,2]
[337496735,1725711032419,-7415.0793,0.000129,2]
[337496736,1725711032428,-500.0,0.000129,2]
[337496737,1725711032438,-500.0,0.000129,2]
[337496738,1725711032447,-500.0,0.000129,2]
[337496739,1725711032457,-500.0,0.000129,2]
[337496740,1725711032466,-500.0,0.000129,2]
[337496741,1725711032476,-500.0,0.000129,2]
[337496742,1725711032486,-500.0,0.000129,2]
[337496743,1725711032500,-420.68825389,0.000129,2]
[337496744,1725711032510,-150.0,0.00013187,2]
[337496745,1725711032520,-455.57,0.00013189,2]
[337496746,1725711032529,-250.0,0.00013191,2]
[337496747,1725711032539,-23880.0,0.00013203,2]
[337496748,1725711032548,-250.0,0.00013204,2]
[337496749,1725711032557,-500.0,0.00013208,2]
[337496750,1725711032568,-202.25,0.00013214,2]
[337496751,1725711032577,-155.76,0.0001322,2]
[337496752,1725711032586,-191.32,0.00013232,2]
[337496753,1725711032595,-10000.0,0.00013236,2]
[337496754,1725711032604,-150.99,0.00013236,2]
[337496755,1725711032614,-499.99,0.00013303,2]
[337496756,1725711032623,-183.86825625,0.000134,2]
[337496757,1725711032632,-199.01,0.00013559,2]
[337496758,1725711032641,-191.31,0.00013645,2]
[337496759,1725711032650,-150.0,0.00013699,2]
[337496760,1725711032659,-150.0,0.00013786,2]
[337496761,1725711032668,-230.057,0.00013786,2]
[337496762,1725711032678,-5855.0,0.00013786,2]
[337496763,1725711032687,-623.0,0.00013956,2]
[337496764,1725711032696,-447.0,0.00013956,2]
[337496765,1725711032705,-1545.0,0.00013956,2]
[337496766,1725711032715,-1898.0,0.00013956,2]
[337496767,1725711032724,-1139.0,0.00013956,2]
[337496768,1725711032734,-804.0,0.00013956,2]
[337496769,1725711032744,-1922.0,0.00013956,2]
[337496770,1725711032753,-598.898,0.00013956,2]
[337496771,1725711032763,-164.70272978,0.00014,20]
[337496772,1725711032772,-879.659,0.00014059,2]
[337496773,1725711032781,-306.238,0.00014059,2]
[337496774,1725711032791,-150.0,0.00014059,2]
[337496775,1725711032800,-420.0,0.00014147,2]
[337496776,1725711032810,-359.0,0.000142,2]
[337496777,1725711032819,-1000.0,0.000142,2]
[337496778,1725711032828,-226.0,0.000142,2]
[337496779,1725711032837,-221.192865,0.00014247,2]
[337496780,1725711032847,-475.96,0.00014297,2]
[337496781,1725711032856,-475.96,0.00014301,2]
[337496782,1725711032866,-475.96,0.00014305,2]
[337496783,1725711032875,-475.96,0.00014308,2]
[337496785,1725711032885,-475.96,0.00014312,2]
[337496787,1725711032896,-475.96,0.00014316,2]
[337496788,1725711032906,-475.96,0.0001432,2]
[337496790,1725711032915,-475.96,0.00014323,2]
[337496791,1725711032925,-475.96,0.00014327,2]
[337496793,1725711032934,-475.96,0.00014331,2]
[337496795,1725711032944,-475.96,0.00014335,2]
[337496797,1725711032953,-475.96,0.00014338,2]
[337496799,1725711032963,-475.96,0.00014342,2]
[337496800,1725711032972,-475.96,0.00014346,2]
[337496802,1725711032981,-475.96,0.0001435,2]
[337496804,1725711032989,-475.96,0.00014353,2]
[337496805,1725711032999,-475.96,0.00014357,2]
[337496807,1725711033008,-475.96,0.00014361,2]
[337496809,1725711033018,-475.96,0.00014365,2]
[337496811,1725711033028,-475.96,0.00014368,2]
[337496812,1725711033038,-150.0,0.0001442,2]
[337496814,1725711033047,-161.91,0.00014596,2]
[337496816,1725711033058,-7451.9384,0.000146,2]
[337496818,1725711033068,-411.47229295,0.00014699,2]
[337496820,1725711033077,-8053.9685,0.000147,2]
[337496822,1725711033090,-658.0173,0.000147,2]
[337496824,1725711033103,-68943.33130612,0.000147,2]
[337496826,1725711033119,-535.511,0.000147,2]
[337496827,1725711033133,-587.0,0.000147,2]
[337496828,1725711033167,-98400.14059388,0.000147,2]
[337496829,1725711033178,-282.41996356,0.00014717,2]
[337496830,1725711033189,-500.0,0.00014742,2]
[337496831,1725711033199,-150.0,0.0001478,2]
[337496832,1725711033211,-500.0,0.00014794,2]
[337496833,1725711033224,-23070.78968043,0.000148,2]
[337496834,1725711033238,-600.0,0.000148,2]
[337496835,1725711033252,-1096.73776496,0.000148,2]
[337496836,1725711033265,-1238.04,0.000148,2]
[337496837,1725711033283,-36152.9817798,0.000148,2]
[337496838,1725711033295,-949.22541,0.0001485,2]
[337496839,1725711033307,-352.73051695,0.00014899,2]
[337496840,1725711033318,-2884.22291844,0.000149,2]
[337496841,1725711033331,-502.05265967,0.000149,2]
[337496842,1725711033343,-4997.94734033,0.000149,2]
[337496843,1725711033357,-7221.95715967,0.000149,2]
[337496844,1725711033371,-365.94019073,0.000149,2]
[337496845,1725711033383,-5739.67994592,0.000149,2]
[337496846,1725711033399,-500.0,0.00014973,2]
[337496847,1725711033410,-500.0,0.00014973,2]
[337496848,1725711033420,-200.0,0.00014973,2]
[337496849,1725711033431,-1000.0,0.00014999,2]
[337496850,1725711033443,-1000.0,0.00014999,2]
[337496851,1725711033454,-1000.0,0.00014999,2]
[337496852,1725711033465,-1000.0,0.00014999,2]
[337496853,1725711033475,-1000.0,0.00014999,2]
[337496854,1725711033487,-1000.0,0.00014999,2]
[337496855,1725711033498,-1000.0,0.00014999,2]
[337496856,1725711033513,-1000.0,0.00014999,2]
[337496857,1725711033524,-1000.0,0.00014999,2]
[337496858,1725711033534,-500.0,0.00014999,2]
[337496859,1725711033547,-500.0,0.00014999,2]
[337496860,1725711033557,-500.0,0.00014999,2]
[337496861,1725711033566,-500.0,0.00014999,2]
[337496862,1725711033576,-500.0,0.00014999,2]
[337496863,1725711033586,-500.0,0.00014999,2]
[337496864,1725711033596,-500.0,0.00014999,2]
[337496865,1725711033606,-500.0,0.00014999,2]
[337496866,1725711033617,-500.0,0.00014999,2]
[337496867,1725711033627,-500.0,0.00014999,2]
[337496868,1725711033638,-500.0,0.00014999,2]
[337496869,1725711033650,-500.0,0.00014999,2]
[337496870,1725711033661,-500.0,0.00014999,2]
[337496871,1725711033672,-500.0,0.00014999,2]
[337496872,1725711033683,-500.0,0.00014999,2]
[337496873,1725711033695,-500.0,0.00014999,2]
[337496874,1725711033705,-500.0,0.00014999,2]
[337496875,1725711033716,-500.0,0.00014999,2]
[337496876,1725711033727,-500.0,0.00014999,2]
[337496877,1725711033739,-224.19583206,0.00014999,2]
[337496878,1725711033750,-992.0,0.00014999,2]
[337496879,1725711033761,-510270.17787891,0.00015,2]
[337496880,1725711033780,-312.75876885,0.00015,2]
[337496881,1725711033793,-1418.27759829,0.00015,2]
[337496882,1725711038359,-1000.0,0.00013179,2]
[337496883,1725711038370,-10000.0,0.00013296,2]
[337496884,1725711038381,-1000.0,0.00014826,2]
[337496885,1725711038390,-90566.79042897,0.00015,2]
[337496886,1725711038402,-684519.93882405,0.00015,2]
[337496887,1725711038417,-5465.0596,0.00015,2]
[337496888,1725711038430,-2440.67190885,0.00015,2]
[337496889,1725711038443,-30098.5069003,0.00015,2]
[337496890,1725711038458,-1851.28133172,0.00015,2]
[337496891,1725711038471,-12504.31307594,0.00015,2]
[337496892,1725711038484,-1583.68786984,0.00015,2]
[337496893,1725711038500,-17230.93025997,0.00015,2]
[337496894,1725711038511,-141727.5975789,0.00015,2]
[337496895,1725711038523,-19547.26188689,0.00015,2]
[337496896,1725711038536,-33740.1538901,0.00015,2]
[337496897,1725711038551,-351.02300115,0.00015,2]
[337496898,1725711038597,-638.76806,0.00015,2]
[337496899,1725711038657,-2022.30000001,0.00015,2]
[337496900,1725711038670,-5429.47785504,0.00015,2]
[337496901,1725711038683,-23722.35011438,0.00015,2]
[337496902,1725711038696,-5979.78453988,0.00015,2]
[337496965,1725711040412,-1832.89551806,0.00013296,2]
[337496966,1725711040600,-288.70825779,0.00013296,2]
[337496967,1725711040613,-4060.85967849,0.00013296,2]
[337496968,1725711040624,-893.0,0.00015,2]
[337496969,1725711040635,-48329.17183271,0.00015,2]
[337496970,1725711040648,-3968.06412907,0.00015,2]
[337496971,1725711040660,-243646.79845588,0.00015,2]
[337496972,1725711040673,-379.9422459,0.00015,2]
[337496973,1725711040700,-976.22792937,0.00015,2]
[337496977,1725711044076,-1401.9999998,0.00015,2]
[337496978,1725711044089,-11013.0,0.00015,2]
[337497000,1725711219965,174.04,0.00010959,2]
[337497002,1725711428391,248.39,0.00011928,2]
[337497029,1725712025863,235.97,0.00011724,2]
[337497059,1725712231636,-1649.09184316,0.000131,2]
[337497060,1725712231696,-6930.47824333,0.000131,2]
[337497061,1725712231707,-365.35210606,0.000131,2]
[337497062,1725712231719,-2475.883476,0.000131,2]
[337497063,1725712231731,-4612.82411465,0.000131,2]
[337497064,1725712231760,-397.92779334,0.000131,2]
[337497065,1725712231822,-3125.27043744,0.000131,2]
[337497066,1725712231832,-4000.0,0.000131,2]
[337497067,1725712231843,-478.59396333,0.000131,2]
[337497068,1725712231855,-9546.10012289,0.000131,2]
[337497069,1725712231863,-626.14,0.00013655,2]
[337497070,1725712231872,-500.0,0.00013655,2]
[337497071,1725712231881,-407.25,0.00013691,2]
[337497072,1725712231892,-250.0,0.00013718,2]
[337497073,1725712231901,-250.0,0.00013718,2]
[337497074,1725712231910,-150.0,0.00013761,2]
[337497075,1725712231921,-703.727,0.00013786,2]
[337497076,1725712231930,-244.991,0.00013786,2]
[337497077,1725712231939,-400.0,0.00013786,2]
[337497078,1725712231948,-284.83,0.00013822,2]
[337497079,1725712231958,-1054.61,0.00013827,2]
[337497080,1725712231969,-3089.67,0.00013827,2]
[337497081,1725712231978,-499.99,0.00013984,2]
[337497082,1725712231987,-235.97,0.00013988,2]
[337497083,1725712231999,-150.0,0.00014128,2]
[337497084,1725712232008,-150.0,0.00014155,2]
[337497085,1725712232017,-633.611,0.00014156,2]
[337497086,1725712232026,-804.0,0.00014156,2]
[337497087,1725712232035,-1922.0,0.00014156,2]
[337497088,1725712232045,-150.0,0.00014156,2]
[337497089,1725712232054,-447.0,0.00014156,2]
[337497090,1725712232063,-5851.0,0.00014156,2]
[337497091,1725712232072,-150.0,0.00014496,2]
[337497092,1725712232082,-359.0,0.000145,2]
[337497093,1725712232091,-1000.0,0.000145,2]
[337497094,1725712232101,-226.0,0.000145,2]
[337497095,1725712232111,-2222.8567,0.000146,2]
[337497096,1725712232120,-1000.0,0.000146,2]
[337497097,1725712232129,-2631.7714,0.000146,2]
[337497098,1725712232139,-1103.48455987,0.000147,2]
[337497099,1725712232148,-1142.1263697,0.000147,2]
[337497100,1725712232157,-1047.62171527,0.000147,2]
[337497101,1725712232167,-199.073579,0.00014795,2]
[337497102,1725712232177,-791.02117,0.0001485,2]
[337497103,1725712232187,-150.0,0.00014863,2]
[337497104,1725712232196,-191.95,0.00014887,2]
[337497105,1725712232206,-247.06014866,0.00014899,2]
[337497106,1725712232215,-1117.881,0.00014899,2]
[337497107,1725712232225,-2049.454,0.000149,2]
[337497108,1725712232235,-1469.60141314,0.000149,2]
[337497109,1725712232254,-2314.61,0.000149,2]
[337497110,1725712232265,-713.70138686,0.000149,2]
[337497111,1725712232274,-5.72280864,0.000149,2]
[337497112,1725712237568,-10981.07589136,0.000149,2]
[337497113,1725712237577,-4252.0117,0.000149,2]
[337497114,1725712237589,-1257.5934,0.000149,2]
[337497115,1725712237599,-6045.0,0.000149,2]
[337497116,1725712237608,-9698.90634606,0.000149,2]
[337497117,1725712237627,-282.7407887,0.000149,2]
[337497118,1725712237638,-2243.68366524,0.000149,2]
[337497119,1725712237647,-606.4471,0.000149,2]
[337497120,1725712237656,-1636.9819,0.000149,2]
[337497121,1725712237665,-162.72061766,0.000149,2]
[337497122,1725712237675,-35224.52363744,0.000149,2]
[337497123,1725712237684,-399.42022186,0.000149,2]
[337497124,1725712237693,-500.0,0.00014973,2]
[337497125,1725712237702,-500.0,0.00014973,2]
[337497126,1725712237711,-325.94096464,0.00014992,2]
[337497127,1725712237720,-701.898219,0.00014998,2]
[337497128,1725712237729,-1000.0,0.00014999,2]
[337497129,1725712237738,-1000.0,0.00014999,2]
[337497130,1725712237747,-1000.0,0.00014999,2]
[337497131,1725712237756,-1000.0,0.00014999,2]
[337497132,1725712237765,-1000.0,0.00014999,2]
[337497133,1725712237775,-1000.0,0.00014999,2]
[337497134,1725712237784,-1000.0,0.00014999,2]
[337497135,1725712237795,-1000.0,0.00014999,2]
[337497136,1725712237804,-1000.0,0.00014999,2]
[337497137,1725712237813,-856.0,0.00015,2]
[337497138,1725712237822,-73079.42255446,0.00015,2]
[337497139,1725712237833,-51749.44334765,0.00015,2]
[337497140,1725712237844,-310.72082982,0.00015,2]
[337497141,1725712237855,-2212.02777319,0.00015,2]
[337497142,1725712237865,-1600.0,0.00015,2]
[337497143,1725712237877,-534.02114835,0.00015,2]
[337497144,1725712237888,-424.88308538,0.00015,2]
[337497145,1725712237899,-2976.02181235,0.00015,2]
[337497146,1725712237915,-274.27572277,0.00015,2]
[337497147,1725712237926,-324319.32609571,0.00015,2]
[337497148,1725712237938,-1153.0,0.00015,2]
[337497149,1725712237949,-12759.24509833,0.00015,2]
[337497150,1725712237960,-1503.75465679,0.00015,2]
[337497151,1725712237970,-2879.43368562,0.00015,2]
[337497152,1725712237982,-3742.70217563,0.00015,2]
[337497153,1725712237993,-729.17517403,0.00015,2]
[337497154,1725712238004,-475.82133345,0.00015,2]
[337497155,1725712238015,-667.57069182,0.00015,2]
[337497156,1725712238026,-2283.51462282,0.00015,2]
[337497157,1725712238036,-500.0,0.00015,2]
[337497159,1725712238051,-12608.96321469,0.00015,2]
[337497160,1725712238062,-3463.50835065,0.00015,2]
[337497162,1725712238074,-7082.35051429,0.00015,2]
[337497164,1725712238086,-3400.0,0.00015,2]
[337497165,1725712238096,-1101.02903969,0.00015,2]
[337497166,1725712239666,-491.14398204,0.00014156,2]
[337497167,1725712239728,-65.85601796,0.00014156,2]
[337497168,1725712239738,-1266.8241666,0.00015,2]
[337497169,1725712239961,-920.2891607,0.00015,2]
[337497170,1725712240022,-13063.5267873,0.00015,2]
[337497182,1725712245875,-595.782,0.00014156,2]
[337497183,1725712245887,-214.218,0.00014156,2]
[337497184,1725712245899,-347.88459846,0.000149,2]
[337497185,1725712245910,-5.63457154,0.00014973,2]
[337497193,1725712264692,194.72,0.00010959,2]
[337497206,1725712814748,159.19,0.00010959,2]
[337497207,1725712837465,709.0,0.00027,120]
[337497208,1725713127763,212.37,0.00011994,2]
[337497223,1725713431671,-203.62,0.00013837,2]
[337497224,1725713431680,-1000.0,0.00013862,2]
[337497225,1725713431689,-227.87,0.00013869,2]
[337497226,1725713431698,-250.0,0.0001389,2]
[337497227,1725713431708,-500.0,0.00013901,2]
[337497228,1725713431716,-150.0,0.00013915,2]
[337497229,1725713431725,-250.0,0.00013936,2]
[337497230,1725713431735,-300.0,0.00013992,2]
[337497231,1725713431744,-18876.31313748,0.00013993,2]
[337497232,1725713431787,-1709.81686252,0.00013993,2]
[337497233,1725713431796,-150.0,0.00014137,2]
[337497234,1725713431806,-172.13,0.00014176,2]
[337497235,1725713431815,-475.25313748,0.00014257,2]
[337497236,1725713431826,-24.73686252,0.00014257,2]
[337497237,1725713431835,-299.99,0.00014257,2]
[337497238,1725713431844,-212.37,0.00014257,2]
[337497239,1725713431854,-150.0,0.00014287,2]
[337497240,1725713431863,-252.10313748,0.00014356,2]
[337497241,1725713431874,-276.76386252,0.00014356,2]
[337497242,1725713431883,-557.0,0.00014356,2]
[337497243,1725713431892,-150.0,0.00014356,2]
[337497244,1725713431901,-150.0,0.00014658,2]
[337497245,1725713431911,-1038.58762175,0.00014674,2]
[337497246,1725713431920,-31.76167662,0.000147,2]
[337497247,1725713431931,-327.23832338,0.000147,2]
[337497248,1725713431940,-756.0,0.000147,2]
[337497249,1725713431949,-422.14,0.00014787,2]
[337497251,1725713431959,-422.14,0.00014787,2]
[337497253,1725713431968,-422.14,0.00014787,2]
[337497255,1725713431977,-422.14,0.00014787,2]
[337497257,1725713431986,-422.14,0.00014787,2]
[337497259,1725713431995,-422.14,0.00014787,2]
[337497261,1725713432004,-422.14,0.00014787,2]
[337497263,1725713432014,-422.14,0.00014787,2]
[337497264,1725713432023,-422.14,0.00014787,2]
[337497266,1725713432032,-562.982,0.00014826,2]
[337497268,1725713432041,-195.992,0.00014826,2]
[337497270,1725713432050,-3741.66514626,0.00014899,2]
[337497272,1725713432062,-1535.87320752,0.00014899,2]
[337497274,1725713432071,-3316.24191159,0.000149,2]
[337497277,1725713432086,-1000.37172,0.000149,2]
[337497310,1725713437790,-179.166221,0.00014521,2]
[337497311,1725713437800,-226.0,0.000147,2]
[337497312,1725713437810,-954.73244241,0.000149,2]
[337497313,1725713437819,-38942.5953,0.000149,2]
[337497314,1725713437828,-1765.2571,0.000149,2]
[337497315,1725713437837,-12225.3308,0.000149,2]
[337497316,1725713437846,-382.1335,0.000149,2]
[337497317,1725713437855,-1000.0,0.000149,2]
[337497318,1725713437864,-9908.7171,0.000149,2]
[337497319,1725713437873,-4513.4936,0.000149,2]
[337497320,1725713437883,-500.0,0.000149,2]
[337497321,1725713437892,-10523.38416384,0.000149,2]
[337497322,1725713437902,-1000.0,0.000149,2]
[337497323,1725713437911,-494.36542846,0.00014973,2]
[337497324,1725713437920,-1000.0,0.00014999,2]
[337497325,1725713437930,-1000.0,0.00014999,2]
[337497326,1725713437939,-1000.0,0.00014999,2]
[337497327,1725713437948,-1000.0,0.00014999,2]
[337497328,1725713437957,-1000.0,0.00014999,2]
[337497329,1725713437966,-1000.0,0.00014999,2]
[337497330,1725713437975,-1000.0,0.00014999,2]
[337497331,1725713437984,-1000.0,0.00014999,2]
[337497332,1725713437993,-1000.0,0.00014999,2]
[337497333,1725713438003,-1664.80472325,0.00014999,2]
[337497334,1725713438011,-505.61573137,0.00014999,2]
[337497335,1725713438020,-500.0,0.00014999,2]
[337497336,1725713438030,-500.0,0.00014999,2]
[337497337,1725713438038,-500.0,0.00014999,2]
[337497338,1725713438047,-500.0,0.00014999,2]
[337497339,1725713438056,-165.46,0.00014999,2]
[337497340,1725713438065,-773.0,0.00015,2]
[337497341,1725713438074,-16647.92398809,0.00015,2]
[337497342,1725713438086,-5796.27731748,0.00015,2]
[337497343,1725713438097,-20069.18729189,0.00015,2]
[337497344,1725713438107,-5650.0,0.00015,2]
[337497438,1725713439731,-10184.53535642,0.00015,2]
[337497439,1725713439848,-14227.75,0.00015,2]
[337497440,1725713440092,-440112.76386541,0.00015,2]
[337497441,1725713440103,-1781238.78446881,0.00015,2]
[337497442,1725713440112,-502.46680565,0.00015,2]
[337497443,1725713440121,-772083.81010279,0.00015,2]
[337497444,1725713440130,-5212074.94295012,0.00015,2]
[337497445,1725713440142,-542.88601018,0.00015,2]
[337497446,1725713440153,-1609.725,0.00015,2]
[337497447,1725713440164,-1542.50000025,0.00015,2]
[337497454,1725713443004,-822.65202,0.00015,2]
[337497457,1725713445861,-699.0,0.00015,2]
[337497458,1725713445871,-28906.0,0.00015,2]
[337497459,1725713446034,-339.1225,0.00015,2]
[337497498,1725714318316,165.33,0.00010959,2]
[337497528,1725714631953,-191.13,0.00012126,2]
[337497529,1725714631964,-250.0,0.00014022,2]
[337497530,1725714631973,-203.62,0.00014024,2]
[337497531,1725714631983,-800.0,0.00014055,2]
[337497532,1725714631993,-250.0,0.00014159,2]
[337497533,1725714632002,-150.0,0.00014238,2]
[337497534,1725714632012,-200.0,0.0001429,2]
[337497535,1725714632022,-500.0,0.00014309,2]
[337497536,1725714632032,-191.13,0.0001439,2]
[337497537,1725714632042,-150.0,0.00014618,2]
[337497538,1725714632051,-1112.64250311,0.000147,2]
[337497539,1725714632060,-1090.97400285,0.000147,2]
[337497540,1725714632070,-499.99,0.00014725,2]
[337497541,1725714632079,-200.0,0.0001478,2]
[337497542,1725714632088,-177.021715,0.00014795,2]
[337497543,1725714632097,-4903.38859245,0.000148,2]
[337497544,1725714632107,-300.0,0.00014849,2]
[337497545,1725714632118,-1260.3533,0.000149,2]
[337497546,1725714632127,-2950.6643,0.000149,2]
[337497547,1725714632136,-12209.0519,0.000149,2]
[337497548,1725714632146,-457.2648,0.000149,2]
[337497549,1725714632155,-528.65627942,0.000149,2]
[337497550,1725714632166,-226.0,0.000149,2]
[337497551,1725714632176,-359.0,0.000149,2]
[337497552,1725714632185,-1462.0,0.000149,2]
[337497553,1725714632194,-9856.99598576,0.000149,2]
[337497554,1725714632204,-500.0,0.00014973,2]
[337497555,1725714632213,-450.386,0.00014973,2]
[337497556,1725714632223,-156.794,0.00014973,2]
[337497557,1725714632232,-150.0,0.00014998,2]
[337497558,1725714632241,-1000.0,0.00014999,2]
[337497560,1725714632250,-1000.0,0.00014999,2]
[337497562,1725714632260,-1000.0,0.00014999,2]
[337497564,1725714632269,-1000.0,0.00014999,2]
[337497566,1725714632279,-1000.0,0.00014999,2]
[337497568,1725714632288,-1000.0,0.00014999,2]
[337497570,1725714632298,-1000.0,0.00014999,2]
[337497572,1725714632308,-654.51479849,0.00014999,2]
[337497581,1725714637990,-345.48520151,0.00014999,2]
[337497582,1725714637999,-1000.0,0.00014999,2]
[337497583,1725714638009,-628.0,0.00015,2]
[337497584,1725714638018,-4562.62721741,0.00015,2]
[337497585,1725714638029,-1759.48135128,0.00015,2]
[337497586,1725714638066,-23786.8659421,0.00015,2]
[337497587,1725714638079,-2852.38436042,0.00015,2]
[337497588,1725714638211,-398.82036052,0.00015,2]
[337497589,1725714638290,-343.85707999,0.00015,2]
[337497590,1725714638304,-1878.43318575,0.00015,2]
[337497591,1725714638315,-8126.365372,0.00015,2]
[337497608,1725714643399,-482.55343431,0.00014699,2]
[337497609,1725714646166,-509.6865,0.00014699,2]
[337497611,1725715110891,-50000.0,0.00031298,30]
[337497612,1725715110927,-50000.0,0.00031298,31]
[337497613,1725715110960,-50000.0,0.00031298,32]
[337497614,1725715110998,-50000.0,0.00031298,33]
[337497615,1725715111026,-5000.0,0.00031298,35]
[337497616,1725715111055,-151474.35768685,0.00031298,31]
[337497617,1725715111084,-1522.0,0.00031298,30]
[337497618,1725715111114,-1325.0,0.00031298,30]
[337497619,1725715111142,-1152.0,0.00031298,30]
[337497620,1725715111170,-1238.0,0.00031298,30]
[337497621,1725715111198,-1287.23,0.00031298,30]
[337497622,1725715111226,-946.0,0.00031298,30]
[337497623,1725715111254,-193.0,0.00031298,30]
[337497625,1725715430300,184.98,0.00010959,2]
[337497629,1725715464574,1040.0,0.00031361,30]
[337497652,1725715679930,183.86,0.00011785,2]
[337497699,1725715832075,-826.53387294,0.00012873,2]
[337497701,1725715832085,-2358.49372144,0.0001288,2]
[337497703,1725715832153,-450.037073,0.0001288,2]
[337497704,1725715832164,-6056.60837724,0.0001288,2]
[337497705,1725715832175,-4066.53555777,0.0001288,2]
[337497706,1725715832191,-31255.64096234,0.0001288,2]
[337497707,1725715832241,-297.99594133,0.0001288,2]
[337497708,1725715832252,-2375.16069498,0.0001288,2]
[337497709,1725715832264,-3244.15518752,0.0001288,2]
[337497710,1725715832275,-4318.1251668,0.0001288,2]
[337497711,1725715832286,-4054.52126582,0.0001288,2]
[337497712,1725715832296,-4796.58478385,0.0001288,2]
[337497713,1725715832307,-1956.37593354,0.0001288,2]
[337497714,1725715832318,-11316.72602082,0.0001288,2]
[337497715,1725715832329,-1117.22136038,0.0001288,2]
[337497716,1725715832340,-3078.55932045,0.0001288,2]
[337497717,1725715832351,-3099.91875805,0.0001288,2]
[337497719,1725715832364,-368.7704374,0.0001288,2]
[337497720,1725715832375,-162220.92599552,0.0001288,2]
[337497721,1725715832386,-261.15578167,0.0001288,2]
[337497722,1725715832397,-517.85068696,0.0001288,2]